[Event "Titled Tuesday Blitz July 18 Late 2023"]
[White "Kovacsy, Barnabas"]
[Black "Fonseca Manrique, Enrique"]
[WhiteFideId "769290"]
[BlackFideId "5114330"]
[WhiteElo "2454"]
[BlackElo "2592"]
[Result "0-1"]
[Round "11"]
[TimeControl "180+2"]
[Date "2023.07.18"]
[WhiteClock "0:00:00"]
[BlackClock "0:00:10"]
[Board "39"]

1. e4 {[%clk 0:03:00]}  c5 {[%clk 0:03:00]} 2. Nf3 {[%clk 0:02:59]}  e6 {[%clk 0:03:00]} 3. d4 {[%clk 0:03:00]}  cxd4 {[%clk 0:03:01]} 4. Nxd4 {[%clk 0:03:00]}  Nc6 {[%clk 0:03:01]} 5. Nc3 {[%clk 0:03:00]}  Qc7 {[%clk 0:03:02]} 6. Be3 {[%clk 0:02:59]}  a6 {[%clk 0:02:59]} 7. Be2 {[%clk 0:02:58]}  Nf6 {[%clk 0:02:59]} 8. O-O {[%clk 0:02:58]}  Be7 {[%clk 0:02:59]} 9. Kh1 {[%clk 0:02:37]}  O-O {[%clk 0:02:57]} 10. f3 {[%clk 0:02:35]}  d5 {[%clk 0:02:46]} 11. exd5 {[%clk 0:02:34]}  exd5 {[%clk 0:02:45]} 12. Bg5 {[%clk 0:02:18]}  Qb6 {[%clk 0:02:05]} 13. Nb3 {[%clk 0:01:59]}  Be6 {[%clk 0:02:04]} 14. Qd2 {[%clk 0:01:53]}  Rad8 {[%clk 0:01:54]} 15. Na4 {[%clk 0:01:44]}  Qc7 {[%clk 0:01:46]} 16. Bf4 {[%clk 0:01:43]}  Ne5 {[%clk 0:01:37]} 17. Qa5 {[%clk 0:01:09]}  Qb8 {[%clk 0:01:28]} 18. Nd4 {[%clk 0:01:00]}  Bc8 {[%clk 0:01:17]} 19. Nb6 {[%clk 0:00:47]}  Bd6 {[%clk 0:01:16]} 20. Nxc8 {[%clk 0:00:47]}  Rxc8 {[%clk 0:01:09]} 21. Bd3 {[%clk 0:00:35]}  Nxd3 {[%clk 0:00:41]} 22. Bxd6 {[%clk 0:00:35]}  Qxd6 {[%clk 0:00:42]} 23. cxd3 {[%clk 0:00:35]}  Qf4 {[%clk 0:00:39]} 24. Qb6 {[%clk 0:00:30]}  Rc7 {[%clk 0:00:32]} 25. Ne2 {[%clk 0:00:24]}  Qe5 {[%clk 0:00:30]} 26. d4 {[%clk 0:00:21]}  Qe7 {[%clk 0:00:29]} 27. Nc3 {[%clk 0:00:21]}  Rc6 {[%clk 0:00:28]} 28. Qb3 {[%clk 0:00:21]}  Rd8 {[%clk 0:00:25]} 29. Rae1 {[%clk 0:00:21]}  Qd7 {[%clk 0:00:25]} 30. Na4 {[%clk 0:00:19]}  h5 {[%clk 0:00:15]} 31. Nc5 {[%clk 0:00:18]}  Qf5 {[%clk 0:00:15]} 32. Re5 {[%clk 0:00:16]}  Qg6 {[%clk 0:00:14]} 33. Qxb7 {[%clk 0:00:14]}  Rdc8 {[%clk 0:00:11]} 34. Rfe1 {[%clk 0:00:12]}  h4 {[%clk 0:00:11]} 35. Nd3 {[%clk 0:00:00]}  Qxd3 {[%clk 0:00:10]} 0-1


[Site "https://www.chess.com"]

[Event "Titled Tuesday Blitz July 18 Late 2023"]
[White "Gascon Del Nogal, Jose Rafael"]
[Black "Lalanne, Pablo"]
[WhiteFideId "3902463"]
[BlackFideId "112151"]
[WhiteElo "2582"]
[BlackElo "2409"]
[Result "1-0"]
[Round "11"]
[TimeControl "180+2"]
[Date "2023.07.18"]
[WhiteClock "0:00:51"]
[BlackClock "0:00:01"]
[Board "40"]

1. Nf3 {[%clk 0:03:00]}  c5 {[%clk 0:02:58]} 2. c4 {[%clk 0:02:59]}  e6 {[%clk 0:02:58]} 3. d4 {[%clk 0:03:00]}  d5 {[%clk 0:02:58]} 4. cxd5 {[%clk 0:02:59]}  exd5 {[%clk 0:02:59]} 5. g3 {[%clk 0:02:59]}  Nf6 {[%clk 0:02:58]} 6. Bg2 {[%clk 0:03:00]}  Nc6 {[%clk 0:02:59]} 7. O-O {[%clk 0:03:00]}  Be7 {[%clk 0:02:59]} 8. dxc5 {[%clk 0:03:00]}  Bxc5 {[%clk 0:03:00]} 9. Bg5 {[%clk 0:03:00]}  Be7 {[%clk 0:02:40]} 10. Nc3 {[%clk 0:02:55]}  Be6 {[%clk 0:02:38]} 11. Nd4 {[%clk 0:02:52]}  Nxd4 {[%clk 0:02:33]} 12. Qxd4 {[%clk 0:02:50]}  O-O {[%clk 0:02:31]} 13. Rfd1 {[%clk 0:02:47]}  h6 {[%clk 0:02:28]} 14. Bf4 {[%clk 0:02:47]}  Qa5 {[%clk 0:02:17]} 15. Nxd5 {[%clk 0:01:56]}  Bxd5 {[%clk 0:01:56]} 16. Bxd5 {[%clk 0:01:57]}  Rfd8 {[%clk 0:01:54]} 17. e4 {[%clk 0:01:54]}  Bc5 {[%clk 0:01:42]} 18. Qc3 {[%clk 0:01:48]}  Qb6 {[%clk 0:01:32]} 19. Qf3 {[%clk 0:01:33]}  Nxd5 {[%clk 0:01:25]} 20. exd5 {[%clk 0:01:32]}  Qxb2 {[%clk 0:01:20]} 21. Rab1 {[%clk 0:01:29]}  Qxa2 {[%clk 0:01:17]} 22. Rxb7 {[%clk 0:01:29]}  Qc2 {[%clk 0:01:01]} 23. Be3 {[%clk 0:01:14]}  Bf8 {[%clk 0:00:34]} 24. Qxf7+ {[%clk 0:01:08]}  Kh8 {[%clk 0:00:34]} 25. Rc1 {[%clk 0:01:08]}  Qh7 {[%clk 0:00:06]} 26. Rc6 {[%clk 0:00:58]}  Qg8 {[%clk 0:00:06]} 27. Rxh6+ {[%clk 0:00:52]}  gxh6 {[%clk 0:00:03]} 28. Bd4+ {[%clk 0:00:50]}  Bg7 {[%clk 0:00:01]} 29. Bxg7+ {[%clk 0:00:51]}  Kh7 {[%clk 0:00:01]} 30. Qf5# {[%clk 0:00:51]} 1-0


[Site "https://www.chess.com"]

[Event "Titled Tuesday Blitz July 18 Late 2023"]
[White "brm72"]
[Black "Bogaudinov, Rushan"]
[BlackFideId "4129288"]
[WhiteElo "2582"]
[BlackElo "2400"]
[Result "1-0"]
[Round "11"]
[TimeControl "180+2"]
[Date "2023.07.18"]
[WhiteClock "0:00:29"]
[BlackClock "0:00:00"]
[Board "41"]

1. e4 {[%clk 0:03:00]}  a6 {[%clk 0:02:22]} 2. d4 {[%clk 0:03:00]}  e6 {[%clk 0:02:22]} 3. Bd3 {[%clk 0:02:59]}  d5 {[%clk 0:02:19]} 4. e5 {[%clk 0:02:56]}  c5 {[%clk 0:02:19]} 5. c3 {[%clk 0:02:56]}  Nc6 {[%clk 0:02:16]} 6. Nf3 {[%clk 0:02:56]}  Nge7 {[%clk 0:02:15]} 7. O-O {[%clk 0:02:54]}  Nf5 {[%clk 0:02:07]} 8. Re1 {[%clk 0:02:47]}  cxd4 {[%clk 0:02:03]} 9. Bxf5 {[%clk 0:02:37]}  exf5 {[%clk 0:02:03]} 10. cxd4 {[%clk 0:02:37]}  Be6 {[%clk 0:02:02]} 11. Nc3 {[%clk 0:02:37]}  Be7 {[%clk 0:02:01]} 12. Be3 {[%clk 0:02:22]}  O-O {[%clk 0:02:01]} 13. Rc1 {[%clk 0:02:16]}  Rc8 {[%clk 0:02:01]} 14. Na4 {[%clk 0:02:16]}  Nb4 {[%clk 0:01:49]} 15. Rxc8 {[%clk 0:02:08]}  Qxc8 {[%clk 0:01:47]} 16. a3 {[%clk 0:02:01]}  Nc6 {[%clk 0:01:27]} 17. Qd2 {[%clk 0:01:51]}  Qc7 {[%clk 0:01:25]} 18. Rc1 {[%clk 0:01:51]}  Rc8 {[%clk 0:01:19]} 19. b4 {[%clk 0:01:49]}  h6 {[%clk 0:01:17]} 20. h4 {[%clk 0:01:49]}  Qd8 {[%clk 0:01:13]} 21. g3 {[%clk 0:01:47]}  Na7 {[%clk 0:01:09]} 22. Nc5 {[%clk 0:01:42]}  Qb6 {[%clk 0:00:43]} 23. Ne1 {[%clk 0:01:28]}  Nc6 {[%clk 0:00:34]} 24. Ned3 {[%clk 0:01:23]}  a5 {[%clk 0:00:33]} 25. Kg2 {[%clk 0:01:12]}  axb4 {[%clk 0:00:32]} 26. axb4 {[%clk 0:01:10]}  Ra8 {[%clk 0:00:27]} 27. Rb1 {[%clk 0:01:08]}  Qb5 {[%clk 0:00:21]} 28. Nf4 {[%clk 0:01:05]}  Nd8 {[%clk 0:00:18]} 29. Nh5 {[%clk 0:01:00]}  Bxc5 {[%clk 0:00:14]} 30. dxc5 {[%clk 0:01:00]}  Nc6 {[%clk 0:00:14]} 31. Bxh6 {[%clk 0:00:59]}  Qc4 {[%clk 0:00:13]} 32. Bxg7 {[%clk 0:00:52]}  Qe4+ {[%clk 0:00:11]} 33. Kh2 {[%clk 0:00:51]}  f4 {[%clk 0:00:10]} 34. Nf6+ {[%clk 0:00:51]}  Kxg7 {[%clk 0:00:10]} 35. Nxe4 {[%clk 0:00:51]}  dxe4 {[%clk 0:00:10]} 36. Qxf4 {[%clk 0:00:51]}  Bd5 {[%clk 0:00:09]} 37. Rd1 {[%clk 0:00:47]}  Nxb4 {[%clk 0:00:08]} 38. Rd4 {[%clk 0:00:45]}  Ra4 {[%clk 0:00:06]} 39. Qf6+ {[%clk 0:00:42]}  Kf8 {[%clk 0:00:06]} 40. Qb6 {[%clk 0:00:39]}  e3 {[%clk 0:00:05]} 41. fxe3 {[%clk 0:00:34]}  Ra2+ {[%clk 0:00:05]} 42. Kh3 {[%clk 0:00:34]}  Be6+ {[%clk 0:00:04]} 43. g4 {[%clk 0:00:34]}  Nd5 {[%clk 0:00:04]} 44. Rxd5 {[%clk 0:00:33]}  Bxd5 {[%clk 0:00:02]} 45. Qd6+ {[%clk 0:00:33]}  Kg7 {[%clk 0:00:02]} 46. Qxd5 {[%clk 0:00:33]}  Rb2 {[%clk 0:00:02]} 47. Qd4 {[%clk 0:00:33]}  Rb3 {[%clk 0:00:01]} 48. e6+ {[%clk 0:00:33]}  f6 {[%clk 0:00:00]} 49. g5 {[%clk 0:00:29]} 1-0


[Site "https://www.chess.com"]

[Event "Titled Tuesday Blitz July 18 Late 2023"]
[White "Silva Lucena, Cristian"]
[Black "Cordova, Emilio"]
[WhiteFideId "2232588"]
[BlackFideId "3801497"]
[WhiteElo "2433"]
[BlackElo "2779"]
[Result "0-1"]
[Round "11"]
[TimeControl "180+2"]
[Date "2023.07.18"]
[WhiteClock "0:00:00"]
[BlackClock "0:01:00"]
[Board "42"]

1. e4 {[%clk 0:03:00]}  c5 {[%clk 0:02:49]} 2. Nf3 {[%clk 0:03:00]}  e6 {[%clk 0:02:49]} 3. d4 {[%clk 0:03:00]}  cxd4 {[%clk 0:02:50]} 4. Nxd4 {[%clk 0:03:00]}  Nc6 {[%clk 0:02:50]} 5. Bf4 {[%clk 0:03:00]}  d6 {[%clk 0:02:49]} 6. Nxc6 {[%clk 0:02:57]}  bxc6 {[%clk 0:02:49]} 7. Bd3 {[%clk 0:02:58]}  e5 {[%clk 0:02:49]} 8. Be3 {[%clk 0:02:55]}  Nf6 {[%clk 0:02:49]} 9. h3 {[%clk 0:02:53]}  d5 {[%clk 0:02:48]} 10. exd5 {[%clk 0:02:47]}  cxd5 {[%clk 0:02:49]} 11. O-O {[%clk 0:02:46]}  Bd6 {[%clk 0:02:46]} 12. Bg5 {[%clk 0:02:36]}  O-O {[%clk 0:02:44]} 13. Nc3 {[%clk 0:02:33]}  d4 {[%clk 0:02:42]} 14. Bxf6 {[%clk 0:02:05]}  Qxf6 {[%clk 0:02:37]} 15. Ne4 {[%clk 0:02:06]}  Qh6 {[%clk 0:02:36]} 16. Nxd6 {[%clk 0:02:05]}  Qxd6 {[%clk 0:02:37]} 17. Qe2 {[%clk 0:01:46]}  Bb7 {[%clk 0:02:36]} 18. Rfe1 {[%clk 0:01:44]}  Rae8 {[%clk 0:02:35]} 19. Bb5 {[%clk 0:01:34]}  Re7 {[%clk 0:02:31]} 20. c3 {[%clk 0:01:33]}  dxc3 {[%clk 0:02:25]} 21. bxc3 {[%clk 0:01:34]}  f5 {[%clk 0:02:26]} 22. Rad1 {[%clk 0:01:30]}  Qg6 {[%clk 0:02:13]} 23. Bc4+ {[%clk 0:01:30]}  Kh8 {[%clk 0:01:59]} 24. Bd5 {[%clk 0:01:31]}  Bc8 {[%clk 0:01:57]} 25. Kh1 {[%clk 0:01:10]}  e4 {[%clk 0:01:56]} 26. f3 {[%clk 0:01:01]}  h5 {[%clk 0:01:40]} 27. fxe4 {[%clk 0:00:44]}  f4 {[%clk 0:01:40]} 28. Qf3 {[%clk 0:00:40]}  Re5 {[%clk 0:01:36]} 29. Rf1 {[%clk 0:00:23]}  Bg4 {[%clk 0:01:35]} 30. hxg4 {[%clk 0:00:17]}  hxg4 {[%clk 0:01:36]} 31. Qd3 {[%clk 0:00:16]}  g3 {[%clk 0:01:29]} 32. Kg1 {[%clk 0:00:12]}  Qb6+ {[%clk 0:01:21]} 33. Qd4 {[%clk 0:00:12]}  Qh6 {[%clk 0:01:21]} 34. Rf3 {[%clk 0:00:09]}  Rh5 {[%clk 0:01:21]} 35. Kf1 {[%clk 0:00:09]}  Rh2 {[%clk 0:01:13]} 36. e5 {[%clk 0:00:09]}  Rxg2 {[%clk 0:01:07]} 37. Kxg2 {[%clk 0:00:08]}  Qh2+ {[%clk 0:01:06]} 38. Kf1 {[%clk 0:00:08]}  g2+ {[%clk 0:01:07]} 39. Ke1 {[%clk 0:00:05]}  g1=Q+ {[%clk 0:01:08]} 40. Qxg1 {[%clk 0:00:04]}  Qxg1+ {[%clk 0:01:09]} 41. Ke2 {[%clk 0:00:04]}  Qg2+ {[%clk 0:01:08]} 42. Rf2 {[%clk 0:00:05]}  Qg4+ {[%clk 0:01:08]} 43. Rf3 {[%clk 0:00:03]}  g5 {[%clk 0:01:02]} 44. e6 {[%clk 0:00:00]}  Kg7 {[%clk 0:01:00]} 0-1


[Site "https://www.chess.com"]

[Event "Titled Tuesday Blitz July 18 Late 2023"]
[White "NLLO777"]
[Black "Pinero Rodriguez, Carlos Jose"]
[BlackFideId "3901726"]
[WhiteElo "2461"]
[BlackElo "2606"]
[Result "0-1"]
[Round "11"]
[TimeControl "180+2"]
[Date "2023.07.18"]
[WhiteClock "0:00:14"]
[BlackClock "0:01:47"]
[Board "46"]

1. d4 {[%clk 0:03:00]}  Nf6 {[%clk 0:02:59]} 2. c4 {[%clk 0:03:00]}  e6 {[%clk 0:02:59]} 3. Nf3 {[%clk 0:03:00]}  Bb4+ {[%clk 0:02:59]} 4. Bd2 {[%clk 0:03:00]}  Qe7 {[%clk 0:03:00]} 5. g3 {[%clk 0:02:58]}  O-O {[%clk 0:03:00]} 6. Bg2 {[%clk 0:02:59]}  Bxd2+ {[%clk 0:03:00]} 7. Qxd2 {[%clk 0:02:57]}  d6 {[%clk 0:03:01]} 8. Nc3 {[%clk 0:02:57]}  c6 {[%clk 0:02:59]} 9. O-O {[%clk 0:02:56]}  e5 {[%clk 0:02:59]} 10. e3 {[%clk 0:02:51]}  Re8 {[%clk 0:02:59]} 11. Rfd1 {[%clk 0:02:49]}  h6 {[%clk 0:02:57]} 12. Rac1 {[%clk 0:02:48]}  e4 {[%clk 0:02:56]} 13. Ne1 {[%clk 0:02:46]}  Bf5 {[%clk 0:02:56]} 14. b4 {[%clk 0:02:44]}  Nbd7 {[%clk 0:02:56]} 15. a4 {[%clk 0:02:44]}  a5 {[%clk 0:02:56]} 16. b5 {[%clk 0:02:38]}  c5 {[%clk 0:02:55]} 17. Nc2 {[%clk 0:02:38]}  Rad8 {[%clk 0:02:51]} 18. Nd5 {[%clk 0:02:27]}  Nxd5 {[%clk 0:02:51]} 19. cxd5 {[%clk 0:02:28]}  b6 {[%clk 0:02:47]} 20. dxc5 {[%clk 0:02:26]}  dxc5 {[%clk 0:02:47]} 21. d6 {[%clk 0:01:57]}  Qe6 {[%clk 0:02:45]} 22. Na3 {[%clk 0:01:53]}  Ne5 {[%clk 0:02:44]} 23. Qd5 {[%clk 0:01:45]}  Rd7 {[%clk 0:02:41]} 24. Nc4 {[%clk 0:01:34]}  Nxc4 {[%clk 0:02:39]} 25. Rxc4 {[%clk 0:01:34]}  Qxd5 {[%clk 0:02:38]} 26. Rxd5 {[%clk 0:01:35]}  Be6 {[%clk 0:02:39]} 27. Bxe4 {[%clk 0:01:30]}  Bxd5 {[%clk 0:02:38]} 28. Bxd5 {[%clk 0:01:31]}  Rxd6 {[%clk 0:02:38]} 29. e4 {[%clk 0:01:32]}  Red8 {[%clk 0:02:33]} 30. Kg2 {[%clk 0:01:23]}  Kf8 {[%clk 0:02:32]} 31. Rc3 {[%clk 0:01:12]}  Rxd5 {[%clk 0:02:31]} 32. exd5 {[%clk 0:01:12]}  Rxd5 {[%clk 0:02:32]} 33. Rc4 {[%clk 0:01:02]}  Ke7 {[%clk 0:02:28]} 34. Kf3 {[%clk 0:01:02]}  f5 {[%clk 0:02:27]} 35. h4 {[%clk 0:00:58]}  Rd4 {[%clk 0:02:22]} 36. Rc3 {[%clk 0:00:27]}  Rxa4 {[%clk 0:02:20]} 37. Re3+ {[%clk 0:00:26]}  Kd7 {[%clk 0:02:20]} 38. Rd3+ {[%clk 0:00:26]}  Rd4 {[%clk 0:02:20]} 39. Re3 {[%clk 0:00:24]}  g5 {[%clk 0:02:19]} 40. Re5 {[%clk 0:00:24]}  gxh4 {[%clk 0:02:15]} 41. Rxf5 {[%clk 0:00:22]}  hxg3 {[%clk 0:02:14]} 42. Kxg3 {[%clk 0:00:22]}  Ke6 {[%clk 0:02:12]} 43. Rf8 {[%clk 0:00:21]}  Rb4 {[%clk 0:02:10]} 44. f4 {[%clk 0:00:18]}  h5 {[%clk 0:02:04]} 45. Kh4 {[%clk 0:00:17]}  Ke7 {[%clk 0:01:57]} 46. Rf5 {[%clk 0:00:17]}  a4 {[%clk 0:01:57]} 47. Kg5 {[%clk 0:00:15]}  a3 {[%clk 0:01:57]} 48. Re5+ {[%clk 0:00:15]}  Kf7 {[%clk 0:01:55]} 49. Rd5 {[%clk 0:00:09]}  Rxb5 {[%clk 0:01:53]} 50. f5 {[%clk 0:00:06]}  a2 {[%clk 0:01:53]} 51. Rd7+ {[%clk 0:00:06]}  Ke8 {[%clk 0:01:52]} 52. Rd1 {[%clk 0:00:05]}  Rb1 {[%clk 0:01:52]} 53. Rd6 {[%clk 0:00:01]}  a1=Q {[%clk 0:01:52]} 54. f6 {[%clk 0:00:01]}  Rg1+ {[%clk 0:01:51]} 55. Kf5 {[%clk 0:00:01]}  Qb1+ {[%clk 0:01:49]} 56. Ke6 {[%clk 0:00:01]}  Re1+ {[%clk 0:01:48]} 57. Kd5 {[%clk 0:00:02]}  Rd1+ {[%clk 0:01:48]} 58. Kc6 {[%clk 0:00:03]}  Rxd6+ {[%clk 0:01:48]} 59. Kc7 {[%clk 0:00:03]}  Rxf6 {[%clk 0:01:47]} 60. Kc8 {[%clk 0:00:03]}  b5 {[%clk 0:01:47]} 61. Kc7 {[%clk 0:00:04]}  c4 {[%clk 0:01:48]} 62. Kc8 {[%clk 0:00:05]}  b4 {[%clk 0:01:49]} 63. Kc7 {[%clk 0:00:06]}  b3 {[%clk 0:01:50]} 64. Kc8 {[%clk 0:00:07]}  c3 {[%clk 0:01:50]} 65. Kc7 {[%clk 0:00:08]}  Qh7+ {[%clk 0:01:48]} 66. Kb8 {[%clk 0:00:09]}  c2 {[%clk 0:01:47]} 67. Ka8 {[%clk 0:00:09]}  b2 {[%clk 0:01:47]} 68. Kb8 {[%clk 0:00:10]}  c1=Q {[%clk 0:01:47]} 69. Ka8 {[%clk 0:00:11]}  h4 {[%clk 0:01:47]} 70. Kb8 {[%clk 0:00:11]}  h3 {[%clk 0:01:47]} 71. Ka8 {[%clk 0:00:12]}  h2 {[%clk 0:01:47]} 72. Kb8 {[%clk 0:00:13]}  b1=Q+ {[%clk 0:01:46]} 73. Ka8 {[%clk 0:00:14]}  h1=Q# {[%clk 0:01:47]} 0-1


[Site "https://www.chess.com"]

[Event "Titled Tuesday Blitz July 18 Late 2023"]
[White "Vlassov, Nikolai"]
[Black "Arnold, Ken"]
[WhiteFideId "4103360"]
[BlackFideId "2056836"]
[WhiteElo "2571"]
[BlackElo "2450"]
[Result "1-0"]
[Round "11"]
[TimeControl "180+2"]
[Date "2023.07.18"]
[WhiteClock "0:00:36"]
[BlackClock "0:00:17"]
[Board "48"]

1. e4 {[%clk 0:03:00]}  c6 {[%clk 0:02:59]} 2. d4 {[%clk 0:03:00]}  d5 {[%clk 0:03:00]} 3. e5 {[%clk 0:03:00]}  Bf5 {[%clk 0:03:00]} 4. Nc3 {[%clk 0:03:00]}  e6 {[%clk 0:03:00]} 5. g4 {[%clk 0:02:59]}  Bg6 {[%clk 0:02:59]} 6. Nge2 {[%clk 0:02:59]}  Be7 {[%clk 0:02:58]} 7. Be3 {[%clk 0:02:58]}  Nh6 {[%clk 0:02:53]} 8. Nf4 {[%clk 0:02:53]}  b5 {[%clk 0:02:45]} 9. Bg2 {[%clk 0:02:45]}  b4 {[%clk 0:02:44]} 10. Na4 {[%clk 0:02:45]}  Nd7 {[%clk 0:02:44]} 11. O-O {[%clk 0:02:39]}  O-O {[%clk 0:02:42]} 12. Nd3 {[%clk 0:02:30]}  f5 {[%clk 0:02:29]} 13. exf6 {[%clk 0:02:25]}  Bxf6 {[%clk 0:02:25]} 14. f4 {[%clk 0:02:06]}  Bxd3 {[%clk 0:02:21]} 15. cxd3 {[%clk 0:02:05]}  g5 {[%clk 0:02:17]} 16. Rc1 {[%clk 0:01:40]}  Rc8 {[%clk 0:02:15]} 17. h3 {[%clk 0:01:35]}  gxf4 {[%clk 0:02:12]} 18. Rxf4 {[%clk 0:01:34]}  Bg5 {[%clk 0:02:10]} 19. Rxf8+ {[%clk 0:01:34]}  Nxf8 {[%clk 0:02:08]} 20. Qd2 {[%clk 0:01:32]}  Nf7 {[%clk 0:02:03]} 21. Nc5 {[%clk 0:01:30]}  Qf6 {[%clk 0:01:53]} 22. Bxg5 {[%clk 0:01:21]}  Nxg5 {[%clk 0:01:51]} 23. Qe3 {[%clk 0:01:19]}  Qg6 {[%clk 0:01:08]} 24. Re1 {[%clk 0:01:17]}  Re8 {[%clk 0:01:05]} 25. Kh2 {[%clk 0:01:12]}  Nf7 {[%clk 0:01:02]} 26. Qf4 {[%clk 0:01:08]}  Qg7 {[%clk 0:00:49]} 27. h4 {[%clk 0:01:06]}  e5 {[%clk 0:00:48]} 28. dxe5 {[%clk 0:01:05]}  Rxe5 {[%clk 0:00:47]} 29. Rxe5 {[%clk 0:01:04]}  Qxe5 {[%clk 0:00:45]} 30. Qxe5 {[%clk 0:01:04]}  Nxe5 {[%clk 0:00:45]} 31. Kg3 {[%clk 0:01:04]}  Kf7 {[%clk 0:00:44]} 32. h5 {[%clk 0:01:02]}  h6 {[%clk 0:00:43]} 33. Kf4 {[%clk 0:01:03]}  Ned7 {[%clk 0:00:42]} 34. Na6 {[%clk 0:00:57]}  Ne6+ {[%clk 0:00:40]} 35. Kg3 {[%clk 0:00:52]}  Nec5 {[%clk 0:00:36]} 36. Nxb4 {[%clk 0:00:51]}  a5 {[%clk 0:00:32]} 37. Nxc6 {[%clk 0:00:51]}  Nxd3 {[%clk 0:00:32]} 38. Bxd5+ {[%clk 0:00:50]}  Kf6 {[%clk 0:00:31]} 39. b3 {[%clk 0:00:48]}  Nc1 {[%clk 0:00:29]} 40. a4 {[%clk 0:00:46]}  Nb6 {[%clk 0:00:29]} 41. Bg8 {[%clk 0:00:43]}  Ne2+ {[%clk 0:00:28]} 42. Kf2 {[%clk 0:00:42]}  Nc3 {[%clk 0:00:28]} 43. Nxa5 {[%clk 0:00:42]}  Ncxa4 {[%clk 0:00:28]} 44. bxa4 {[%clk 0:00:41]}  Nxa4 {[%clk 0:00:28]} 45. Kg3 {[%clk 0:00:41]}  Nc5 {[%clk 0:00:28]} 46. Nc4 {[%clk 0:00:41]}  Ne4+ {[%clk 0:00:27]} 47. Kf4 {[%clk 0:00:41]}  Ng5 {[%clk 0:00:27]} 48. Bd5 {[%clk 0:00:41]}  Nh3+ {[%clk 0:00:27]} 49. Kg3 {[%clk 0:00:40]}  Ng5 {[%clk 0:00:27]} 50. Nd2 {[%clk 0:00:40]}  Kg7 {[%clk 0:00:23]} 51. Ne4 {[%clk 0:00:39]}  Nh7 {[%clk 0:00:21]} 52. Kf4 {[%clk 0:00:39]}  Nf8 {[%clk 0:00:20]} 53. Nc5 {[%clk 0:00:37]}  Nh7 {[%clk 0:00:20]} 54. Kf5 {[%clk 0:00:36]}  Ng5 {[%clk 0:00:19]} 55. Ne6+ {[%clk 0:00:36]}  Nxe6 {[%clk 0:00:19]} 56. Bxe6 {[%clk 0:00:36]}  Kh7 {[%clk 0:00:20]} 57. Kf6 {[%clk 0:00:37]}  Kh8 {[%clk 0:00:17]} 58. Bf5 {[%clk 0:00:36]} 1-0


[Site "https://www.chess.com"]

[Event "Titled Tuesday Blitz July 18 Late 2023"]
[White "Todorovic, Bojan"]
[Black "Sadovsky, Artem"]
[WhiteFideId "917087"]
[BlackFideId "4155840"]
[WhiteElo "2394"]
[BlackElo "2563"]
[Result "1-0"]
[Round "11"]
[TimeControl "180+2"]
[Date "2023.07.18"]
[WhiteClock "0:00:05"]
[BlackClock "0:00:22"]
[Board "49"]

1. d4 {[%clk 0:02:59]}  g6 {[%clk 0:02:55]} 2. Nf3 {[%clk 0:02:57]}  Bg7 {[%clk 0:02:56]} 3. c4 {[%clk 0:02:56]}  d6 {[%clk 0:02:55]} 4. Nc3 {[%clk 0:02:55]}  e5 {[%clk 0:02:55]} 5. g3 {[%clk 0:02:48]}  Nc6 {[%clk 0:02:53]} 6. dxe5 {[%clk 0:02:31]}  d5 {[%clk 0:02:41]} 7. cxd5 {[%clk 0:02:07]}  Nxe5 {[%clk 0:02:39]} 8. Nxe5 {[%clk 0:02:01]}  Bxe5 {[%clk 0:02:40]} 9. Bg2 {[%clk 0:02:00]}  Ne7 {[%clk 0:02:39]} 10. O-O {[%clk 0:01:57]}  h5 {[%clk 0:02:36]} 11. Bg5 {[%clk 0:01:53]}  h4 {[%clk 0:02:28]} 12. Ne4 {[%clk 0:01:31]}  hxg3 {[%clk 0:02:25]} 13. hxg3 {[%clk 0:01:27]}  Bh3 {[%clk 0:02:15]} 14. Nf6+ {[%clk 0:01:17]}  Kf8 {[%clk 0:02:15]} 15. Bxh3 {[%clk 0:01:06]}  Rxh3 {[%clk 0:02:16]} 16. Ng4 {[%clk 0:00:58]}  Rh5 {[%clk 0:01:37]} 17. Qd2 {[%clk 0:00:51]}  Qd7 {[%clk 0:01:20]} 18. Nf6 {[%clk 0:00:39]}  Bxf6 {[%clk 0:01:18]} 19. Bxf6 {[%clk 0:00:37]}  Qh3 {[%clk 0:01:19]} 20. Bxe7+ {[%clk 0:00:13]}  Kg8 {[%clk 0:01:19]} 21. Bh4 {[%clk 0:00:13]}  Rxh4 {[%clk 0:01:10]} 22. gxh4 {[%clk 0:00:11]}  Qg4+ {[%clk 0:01:10]} 23. Kh2 {[%clk 0:00:10]}  Qxh4+ {[%clk 0:01:11]} 24. Kg2 {[%clk 0:00:10]}  Qg4+ {[%clk 0:01:11]} 25. Kh1 {[%clk 0:00:07]}  Kg7 {[%clk 0:01:12]} 26. Qc3+ {[%clk 0:00:07]}  f6 {[%clk 0:01:12]} 27. Qg3 {[%clk 0:00:07]}  Rh8+ {[%clk 0:01:00]} 28. Kg2 {[%clk 0:00:07]}  Qe4+ {[%clk 0:00:57]} 29. Qf3 {[%clk 0:00:07]}  Qe5 {[%clk 0:00:48]} 30. Rh1 {[%clk 0:00:07]}  Re8 {[%clk 0:00:43]} 31. Rad1 {[%clk 0:00:07]}  Qxb2 {[%clk 0:00:40]} 32. d6 {[%clk 0:00:06]}  cxd6 {[%clk 0:00:38]} 33. Rxd6 {[%clk 0:00:06]}  Re7 {[%clk 0:00:39]} 34. Qh3 {[%clk 0:00:03]}  Qxa2 {[%clk 0:00:17]} 35. Qh7+ {[%clk 0:00:03]}  Kf8 {[%clk 0:00:18]} 36. Qxg6 {[%clk 0:00:03]}  Rg7 {[%clk 0:00:17]} 37. Rh8+ {[%clk 0:00:02]}  Qg8 {[%clk 0:00:16]} 38. Rd8+ {[%clk 0:00:02]}  Ke7 {[%clk 0:00:17]} 39. Rhxg8 {[%clk 0:00:02]}  Rxg6+ {[%clk 0:00:18]} 40. Rxg6 {[%clk 0:00:03]}  Kxd8 {[%clk 0:00:19]} 41. Rg7 {[%clk 0:00:03]}  a6 {[%clk 0:00:19]} 42. Rf7 {[%clk 0:00:03]}  Kc8 {[%clk 0:00:20]} 43. Rxf6 {[%clk 0:00:04]}  a5 {[%clk 0:00:20]} 44. Rf3 {[%clk 0:00:04]}  b6 {[%clk 0:00:21]} 45. Rb3 {[%clk 0:00:04]}  Kb7 {[%clk 0:00:22]} 46. f4 {[%clk 0:00:05]}  Ka6 {[%clk 0:00:22]} 47. f5 {[%clk 0:00:05]}  a4 {[%clk 0:00:22]} 48. Rb1 {[%clk 0:00:05]}  b5 {[%clk 0:00:23]} 49. f6 {[%clk 0:00:05]}  Ka5 {[%clk 0:00:24]} 50. f7 {[%clk 0:00:06]}  a3 {[%clk 0:00:25]} 51. f8=Q {[%clk 0:00:06]}  a2 {[%clk 0:00:26]} 52. Qa3+ {[%clk 0:00:06]}  Kb6 {[%clk 0:00:26]} 53. Qxa2 {[%clk 0:00:06]}  Kc5 {[%clk 0:00:26]} 54. Qb3 {[%clk 0:00:06]}  b4 {[%clk 0:00:25]} 55. Qxb4+ {[%clk 0:00:06]}  Kd5 {[%clk 0:00:26]} 56. Rd1+ {[%clk 0:00:06]}  Ke5 {[%clk 0:00:25]} 57. Qd4+ {[%clk 0:00:06]}  Kf5 {[%clk 0:00:26]} 58. Rf1+ {[%clk 0:00:06]}  Kg5 {[%clk 0:00:22]} 59. Qg7+ {[%clk 0:00:05]}  Kh4 {[%clk 0:00:22]} 60. Rh1# {[%clk 0:00:05]} 1-0


[Site "https://www.chess.com"]